bitfinex-derivatives/quotes_ETHF0:USTF0_20250528
["timestamp","ask_amount","ask_price","bid_price","bid_amount"]
[1748394294088,0.75325,2654.0,2653.9,0.75324]
[1748394294886,0.75325,2653.9,2653.8,5.16276]
[1748394295083,1.2849,2654.2,2653.7,0.0056461]
[1748394295385,1.38838,2653.8,2653.7,0.0056461]
[1748394295689,1.38838,2653.8,2653.7,3.7366461]
[1748394295990,1.38838,2653.8,2653.7,4.4899561]
[1748394296188,1.38838,2653.8,2653.7,5.1684561]
[1748394296483,1.38838,2653.8,2653.7,4.4151461]
[1748394298888,1.38838,2653.8,2653.7,5.1684461]
[1748394299986,1.38838,2653.8,2653.7,0.0056461]
[1748394300184,1.38838,2653.8,2653.7,3.7376461]
[1748394300396,3.2078,2654.0,2653.9,0.75323]
[1748394301290,0.75323,2653.9,2653.8,5.0253]
[1748394301477,0.75323,2653.9,2653.8,3.732]
[1748394301682,0.75326,2653.8,2653.7,4.4909361]
[1748394301882,1.39036,2653.8,2653.7,4.4909361]
[1748394303889,1.39036,2653.8,2653.7,0.0056461]
[1748394305182,6.39036,2653.8,2653.7,0.0056461]
[1748394307487,1.39036,2653.8,2653.7,0.0056461]
[1748394307685,2.72952762,2653.8,2653.7,0.0056461]
[1748394307891,1.39036,2653.8,2653.7,0.0056461]
[1748394309088,0.75338,2653.4,2653.3,0.75339]
[1748394309779,2.78178,2653.4,2653.3,0.75339]
[1748394309982,0.75341,2653.3,2653.2,2.12212]
[1748394310182,0.75341,2653.3,2653.2,1.3687]
[1748394310393,0.75346,2653.1,2653.0,0.00376408]
[1748394310596,3.96126,2653.1,2653.0,0.00376408]
[1748394311088,3.96126,2653.1,2653.0,1.37246408]
[1748394311588,5.20796,2653.1,2653.0,1.37246408]
[1748394318196,3.2078,2653.1,2653.0,2.12595408]
[1748394319301,3.96126,2653.1,2653.0,2.12595408]
[1748394320597,3.2078,2653.1,2652.6,1.2894]
[1748394320802,1.88401,2652.6,2652.0,3.2078]
[1748394320998,0.75372,2652.2,2652.1,1.42954]
[1748394321297,0.75372,2652.2,2652.1,22.49954]
[1748394322095,0.75372,2652.2,2652.1,4.4088]
[1748394322393,3.9671161,2652.4,2652.3,0.75368]
[1748394322801,0.75369,2652.3,2652.2,1.2589]
[1748394323293,3.9671261,2652.4,2652.3,0.75369]
[1748394323498,3.9671261,2652.4,2652.3,1.40929]
[1748394323901,3.9671261,2652.4,2652.3,0.6556]
[1748394324101,3.9671261,2652.4,2652.3,1.40929]
[1748394324400,3.9671261,2652.4,2652.3,0.6556]
[1748394324803,3.9671261,2652.4,2652.3,1.9275]
[1748394325297,3.2134461,2652.4,2652.3,2.68119]
[1748394325502,0.0056461,2652.4,2652.3,2.68119]
[1748394326201,0.7593061,2652.4,2652.3,2.68119]
[1748394326503,0.0056461,2652.4,2652.3,2.68119]
[1748394332111,0.7593061,2652.4,2652.3,1.9275]
[1748394332407,1.4041061,2652.4,2652.3,1.9275]
[1748394332601,1.4041061,2652.4,2652.3,2.68119]
[1748394335007,1.4041061,2652.4,2652.3,1.9275]
[1748394335209,0.75383,2651.9,2651.8,18.09282]
[1748394335410,3.2078,2652.1,2651.8,23.61495]
[1748394335709,3.2078,2652.1,2652.0,0.75377]
[1748394336803,0.07904033,2652.4,2652.2,0.75369]
[1748394337003,0.83270033,2652.4,2652.3,1.2855]
[1748394337302,2.17603226,2652.4,2652.3,1.2855]
[1748394337506,3.47853226,2652.4,2652.3,1.2855]
[1748394338206,2.13520033,2652.4,2652.3,1.2855]
[1748394338509,3.4789588,2652.4,2652.3,1.2855]
[1748394339306,3.4789588,2652.4,2652.3,2.03919]
[1748394339506,3.4789588,2652.4,2652.3,1.2855]
[1748394340506,2.1764588,2652.4,2652.3,1.2855]
[1748394340904,3.4483588,2652.4,2652.3,1.2855]
[1748394341812,2.10460033,2652.4,2652.3,1.2855]
[1748394342004,2.10460033,2652.4,2652.3,2.03919]
[1748394342207,0.83270033,2652.4,2652.3,2.03919]
[1748394342607,0.83270033,2652.4,2652.3,1.2855]
[1748394342909,2.17727378,2652.4,2652.3,1.2855]
[1748394343113,0.75383,2651.8,2651.7,3.733]
[1748394344006,0.75383,2651.8,2651.7,4.48686]
[1748394344211,3.96162,2651.9,2651.7,3.733]
[1748394344410,3.96162,2651.9,2651.8,2.05023]
[1748394344607,3.96162,2651.9,2651.8,2.66743]
[1748394345006,3.2078,2651.9,2651.8,2.66743]
[1748394345715,0.83271033,2652.4,2652.3,0.75369]
[1748394345913,0.07904033,2652.4,2652.3,21.82769]
[1748394346113,0.83270033,2652.4,2652.3,1.2715]
[1748394346617,0.83270033,2652.4,2652.3,2.02519]
[1748394346913,0.83270033,2652.4,2652.3,1.2715]
[1748394347113,0.83270033,2652.4,2652.3,2.02519]
[1748394347515,0.83270033,2652.4,2652.3,1.2715]
[1748394348104,0.83270033,2652.4,2652.3,2.02519]
[1748394348516,2.17820815,2652.4,2652.3,2.02519]
[1748394348914,2.17820503,2652.4,2652.3,2.02519]
[1748394349516,2.1048108,2652.4,2652.3,2.02519]
[1748394350606,2.1048108,2652.4,2652.3,5.0045]
[1748394350811,2.1048108,2652.4,2652.3,1.2715]
[1748394351012,2.1048108,2652.4,2652.3,2.02519]
[1748394351320,1.3511508,2652.4,2652.3,2.02519]
[1748394351520,2.1048108,2652.4,2652.3,2.02519]
[1748394353218,0.7593061,2652.4,2652.3,2.02519]
[1748394353421,2.10609062,2652.4,2652.3,2.02519]
[1748394354714,2.10609062,2652.4,2652.3,1.2715]
[1748394355220,2.10609062,2652.4,2652.3,2.02519]
[1748394356323,2.10609062,2652.4,2652.3,1.2715]
[1748394356924,2.10609062,2652.4,2652.3,2.02519]
[1748394357225,2.10609062,2652.4,2652.3,1.2715]
[1748394357622,2.1063451,2652.4,2652.3,2.02519]
[1748394359423,2.1063451,2652.4,2652.3,1.2715]
[1748394360431,0.75374,2652.1,2652.0,0.6795]
[1748394360621,2.100779,2652.1,2652.0,22.3672]
[1748394361023,2.10133675,2652.1,2652.0,22.3672]
[1748394361721,2.10133675,2652.1,2652.0,23.12097]
[1748394361919,1.34759675,2652.1,2652.0,23.12097]
[1748394362114,3.2078,2652.2,2652.0,23.12097]
[1748394362319,0.75374,2652.1,2652.0,21.82577]
[1748394363330,2.10162218,2652.1,2652.0,21.82577]
[1748394364830,2.17501641,2652.1,2652.0,21.82577]
[1748394365128,1.42127641,2652.1,2652.0,21.82577]
[1748394365326,0.07339423,2652.1,2652.0,21.82577]
[1748394365627,0.82713423,2652.1,2652.0,21.82577]
[1748394366033,0.07339423,2652.1,2652.0,26.82577]
[1748394366731,0.07339423,2652.1,2652.0,21.82577]
[1748394367037,0.82713423,2652.1,2652.0,21.82577]
[1748394367226,0.07339423,2652.1,2652.0,21.82577]
[1748394367523,0.82713423,2652.1,2652.0,21.82577]
[1748394367724,0.82713423,2652.1,2652.0,0.75377]
[1748394368233,0.7538,2652.0,2651.9,0.75378]
[1748394368430,0.7538,2651.9,2651.8,2.08093]
[1748394368632,0.7538,2651.9,2651.8,5.81293]
[1748394368938,0.7538,2651.9,2651.8,22.3991]
[1748394369430,0.7538,2651.9,2651.8,1.3271]
[1748394369637,0.7538,2651.9,2651.8,23.15193]
[1748394369824,0.7538,2651.9,2651.8,5.81293]
[1748394370025,0.7538,2651.9,2651.8,1.3271]
[1748394370222,0.7538,2651.9,2651.8,22.3981]
[1748394370430,0.7538,2651.9,2651.8,23.15193]
[1748394372536,1.43549,2652.0,2651.9,0.7538]
[1748394372835,2.78326588,2652.0,2651.9,4.4858]
[1748394373033,2.02948125,2652.0,2651.3,3.2078]
[1748394373235,0.75394,2651.5,2651.4,0.7539]
[1748394373438,0.75394,2651.5,2651.4,5.844]
[1748394374334,1.40131,2651.6,2651.5,0.75392]
[1748394374634,1.99507633,2651.6,2651.2,3.732]
[1748394374837,0.6474,2651.6,2651.5,1.3581]
[1748394375026,1.99506238,2651.6,2651.5,2.11202]
[1748394375837,0.6474,2651.6,2651.5,2.11202]
[1748394378942,3.2078,2652.0,2651.9,0.7538]
[1748394379140,3.2078,2652.0,2651.9,4.4868]
[1748394379728,3.2078,2652.0,2651.9,5.7806]
[1748394380544,1.38961,2652.3,2652.2,0.75372]
[1748394380841,5.94338886,2652.3,2652.2,0.75372]
[1748394381041,46.74338886,2652.3,2652.2,0.75372]
[1748394381540,46.74343966,2652.3,2652.2,0.75372]
[1748394382445,5.94343966,2652.3,2652.2,0.75372]
[1748394383048,0.6359,2652.3,2652.2,0.75372]
[1748394383246,1.4141161,2652.4,2652.3,0.75369]
[1748394383447,2.7601501,2652.4,2652.3,0.75369]
[1748394383944,2.1053501,2652.4,2652.3,0.75369]
[1748394384346,2.1053501,2652.4,2652.3,21.82369]
[1748394385335,2.1053501,2652.4,2652.3,21.07]
[1748394385538,3.3941501,2652.4,2652.3,21.07]
[1748394385743,3.39414381,2652.4,2652.3,21.82369]
[1748394385946,3.39414381,2652.4,2652.3,0.75369]
[1748394387144,2.10534381,2652.4,2652.3,2.09249]
[1748394387644,0.0056461,2652.4,2652.3,2.09249]
[1748394387845,0.0056461,2652.4,2652.3,2.77109]
[1748394388241,0.7593061,2652.4,2652.3,2.77109]
[1748394388645,0.0056461,2652.4,2652.3,2.77109]
[1748394388847,0.7593061,2652.4,2652.3,2.77109]
[1748394389343,0.7593061,2652.4,2652.3,23.83909]
[1748394395154,0.83270033,2652.4,2652.3,23.83909]
[1748394395857,0.83270033,2652.4,2652.3,2.0174]
[1748394396055,0.83270033,2652.4,2652.3,22.4058]
[1748394396550,2.1782786,2652.4,2652.3,1.3388]
[1748394396750,0.75374,2652.2,2652.1,0.75374]
[1748394396946,3.96154,2652.2,2652.1,1.3122]
[1748394397253,0.75382,2652.0,2651.9,0.75379]
[1748394397450,0.75382,2652.0,2651.9,21.82079]
[1748394397648,0.75382,2652.0,2651.9,3.73]
[1748394397848,0.75382,2652.0,2651.9,21.067]
[1748394398154,0.75382,2652.0,2651.9,21.8208]
[1748394398351,0.75382,2652.0,2651.9,23.133]
[1748394401152,0.75376,2652.1,2652.0,0.75374]
[1748394401355,3.2078,2652.2,2652.1,0.75374]
[1748394401560,3.96152,2652.2,2652.1,0.75374]
[1748394402057,3.96152,2652.2,2652.1,1.38164]
[1748394405258,5.30775531,2652.2,2652.1,1.38164]
[1748394405462,3.96152,2652.2,2652.1,1.38164]
[1748394407452,0.75372,2652.2,2652.1,1.38164]
[1748394410463,0.82711423,2652.2,2652.1,1.38164]
[1748394410660,0.07339423,2652.2,2652.1,2.04394]
[1748394414669,0.82711423,2652.2,2652.1,23.10894]
[1748394414862,0.75374,2652.1,2652.0,5.006]
[1748394415167,2.07714,2652.1,2652.0,23.09577]
[1748394415367,1.3234,2652.1,2652.0,23.09577]
[1748394415669,2.07714,2652.1,2652.0,23.09577]
[1748394415868,2.07714,2652.1,2652.0,22.342]
[1748394416169,3.38064,2652.1,2652.0,22.342]
[1748394416467,3.38064,2652.1,2652.0,23.09577]
[1748394417669,0.75386,2651.7,2651.6,0.75862093]
[1748394417870,0.75386,2651.7,2651.6,5.73312093]
[1748394418069,3.96165,2651.8,2651.7,0.75386]
[1748394418268,5.30935142,2651.8,2651.7,1.99066]
[1748394418867,5.30935142,2651.8,2651.7,1.2368]
[1748394419171,5.30935142,2651.8,2651.7,1.99066]
[1748394420563,5.30958913,2651.8,2651.7,1.99066]
[1748394421064,1.34793913,2651.8,2651.7,1.99066]
[1748394421266,0.75381,2651.9,2651.8,0.75383]
[1748394421572,0.75381,2651.9,2651.8,2.67033]
[1748394421773,2.10172756,2651.9,2651.8,2.67033]
[1748394421975,1.34791756,2651.9,2651.8,2.67033]
[1748394422277,3.2078,2652.1,2652.0,0.75377]
[1748394422572,3.2078,2652.1,2652.0,4.48277]
[1748394422964,0.82711423,2652.2,2652.1,0.75374]
[1748394423165,0.82711423,2652.2,2652.1,19.38424]
[1748394423462,2.17481053,2652.2,2652.1,19.38424]
[1748394423666,0.07339423,2652.2,2652.1,19.38424]
[1748394424667,0.75369,2652.3,2652.2,0.75372]
[1748394424868,0.75369,2652.3,2652.2,2.05912]
[1748394425173,0.75369,2652.3,2652.2,2.73602]
[1748394425673,0.0056461,2652.4,2652.3,0.75369]
[1748394425977,0.0056461,2652.4,2652.3,2.05909]
[1748394427471,1.88424,2652.3,2652.1,3.729]
[1748394427678,0.75383,2651.8,2651.7,6.9368]
[1748394427875,0.75383,2651.8,2651.7,8.3011]
[1748394428071,0.75383,2651.8,2651.7,9.05496]
[1748394428470,0.75383,2651.8,2651.7,25.6361]
[1748394428672,0.82722423,2651.8,2651.7,26.38996]
[1748394428870,0.07339423,2651.8,2651.7,26.38996]
[1748394429070,0.82722423,2651.8,2651.7,26.38996]
[1748394429272,0.82722423,2651.8,2651.7,9.05496]
[1748394429471,0.75386,2651.7,2651.6,0.00473093]
[1748394429772,0.75386,2651.7,2651.6,3.73373093]
[1748394429773,4.06308005,2651.7,2651.6,3.73373093]
[1748394430073,4.06308005,2651.7,2651.6,4.48762093]
[1748394431074,2.02382005,2651.7,2651.6,4.48762093]
[1748394431273,0.07339423,2651.8,2651.7,0.75386]
[1748394431477,0.07339423,2651.8,2651.7,2.05856]
[1748394431478,4.62843769,2651.8,2651.7,2.05856]
[1748394431680,4.55504346,2651.8,2651.7,2.05856]
[1748394432078,1.34724346,2651.8,2651.7,2.05856]
[1748394432468,0.75384,2651.8,2651.7,2.05856]
[1748394432771,0.82723423,2651.8,2651.7,2.05856]
[1748394434674,2.11792,2651.9,2651.8,0.75383]
[1748394434982,0.75386,2651.8,2651.7,0.75384]
[1748394435181,5.27836,2651.8,2651.7,0.75384]
[1748394435381,3.96166,2651.8,2651.7,0.75384]
[1748394435584,3.96166,2651.8,2651.7,2.09104]
[1748394437280,3.96166,2651.8,2651.7,1.3372]
[1748394437684,3.96166,2651.8,2651.7,2.09106]
[1748394437883,4.03505423,2651.8,2651.7,2.09106]
[1748394438784,3.2078,2651.8,2651.7,2.09106]
[1748394439082,3.2078,2651.8,2651.7,3.36116]
[1748394441781,3.28119423,2651.8,2651.7,3.36116]
[1748394442991,3.2078,2651.8,2651.7,3.36116]
[1748394443192,0.75381,2651.9,2651.8,0.75383]
[1748394443491,0.75381,2651.9,2651.8,5.84263]
[1748394443688,4.6121,2652.0,2651.9,0.7538]
[1748394443892,4.6121,2652.0,2651.9,2.1136]
[1748394444286,3.96157,2652.0,2651.9,2.1136]
[1748394445792,0.74189423,2652.1,2651.9,2.1136]
[1748394445793,0.07339423,2652.1,2652.0,0.75377]
[1748394445994,3.2078,2652.3,2652.1,0.75372]
[1748394446188,1.314,2652.2,2652.1,0.75372]
[1748394446592,2.06774,2652.2,2652.1,0.75372]
[1748394447098,2.14113423,2652.2,2652.1,0.75372]
[1748394447396,3.46413423,2652.2,2652.1,4.48174]
[1748394447698,3.46413423,2652.2,2652.1,0.75374]
[1748394447898,3.39074,2652.2,2652.1,0.75374]
[1748394448791,1.314,2652.2,2652.1,0.75374]
[1748394448998,0.6768,2652.2,2652.1,2.67304]
[1748394449392,0.07904033,2652.4,2652.1,1.9193]
[1748394449596,0.83270033,2652.4,2652.3,0.75369]
[1748394449795,2.17943438,2652.4,2652.3,2.02709]
[1748394450090,2.10604015,2652.4,2652.3,2.02709]
[1748394451191,0.0056461,2652.4,2652.3,2.02709]
[1748394456005,0.07904033,2652.4,2652.3,2.02709]
[1748394460000,0.83270033,2652.4,2652.3,2.02709]
[1748394460195,0.83270033,2652.4,2652.2,0.6271]
[1748394460196,0.07904033,2652.4,2651.8,3.2078]
[1748394460400,3.96154,2652.1,2652.0,3.727]
[1748394460605,0.75377,2652.0,2651.9,1.2401]
[1748394460803,1.88461,2651.8,2651.4,42.48092]
[1748394461101,3.96169,2651.6,2651.5,1.3203]
[1748394461406,5.3098288,2651.6,2651.5,1.3203]
[1748394461603,6.6706288,2651.6,2651.5,1.3203]
[1748394461802,0.75392,2651.5,2651.4,3.728]
[1748394461999,0.75397,2651.3,2651.2,0.6711]
[1748394462505,1.37926,2651.4,2651.3,0.75397]
[1748394462705,1.37926,2651.4,2651.3,2.07427]
[1748394468308,1.37926,2651.4,2651.3,19.40827]
[1748394469104,2.64386,2651.4,2651.3,19.40827]
[1748394469909,2.64386,2651.4,2651.3,2.07427]
[1748394470207,2.64386,2651.4,2651.3,19.40727]
[1748394470409,2.64386,2651.4,2651.3,18.6533]
[1748394470597,0.754,2651.2,2651.1,0.75403]
[1748394470905,0.754,2651.2,2651.1,23.05173]
[1748394471298,0.754,2651.2,2651.1,23.05273]
[1748394471901,0.75399,2651.3,2651.2,0.75397]
[1748394475608,0.69869423,2651.4,2651.3,0.75397]
[1748394475812,1.45263423,2651.4,2651.3,0.75397]
[1748394476515,1.37924,2651.4,2651.3,0.75397]
[1748394479415,1.45263423,2651.4,2651.3,0.75397]
[1748394480320,1.37924,2651.4,2651.3,0.75397]
[1748394481120,0.75403,2651.2,2651.1,0.754]
[1748394481310,0.75403,2651.2,2651.1,21.815]
[1748394481719,0.82734423,2651.4,2651.3,0.75397]
[1748394482126,0.07339423,2651.4,2651.3,0.75397]
[1748394482519,0.75395,2651.5,2651.4,0.75392]
[1748394483314,0.75395,2651.5,2651.4,2.70442]
[1748394484219,0.75395,2651.5,2651.4,1.9505]
[1748394485716,2.10070188,2651.5,2651.4,1.9505]
[1748394486319,2.10070791,2651.5,2651.4,1.9505]
[1748394486717,2.10070791,2651.5,2651.4,1.3208]
[1748394486918,0.75411,2650.8,2650.7,5.0072]
[1748394487117,3.96191,2650.8,2650.7,5.0072]
[1748394487324,3.96191,2650.8,2650.7,22.3402]
[1748394488125,3.96191,2650.8,2650.7,23.5737]
[1748394488424,3.96191,2650.8,2650.7,24.32784]
[1748394488826,3.96191,2650.8,2650.7,23.5737]
[1748394489122,3.96191,2650.8,2650.7,1.2335]
[1748394489520,5.09311,2650.8,2650.2,3.2078]
[1748394489826,0.75431,2650.1,2650.0,21.81534]
[1748394490631,0.7543,2650.2,2650.1,0.75429]
[1748394490927,1.2702,2650.3,2650.2,0.75428]
[1748394491428,1.2702,2650.3,2650.1,0.75428]
[1748394491630,0.75428,2650.2,2650.1,0.75428]
[1748394492219,2.02447,2650.3,2650.1,0.75428]
[1748394492531,2.02447,2650.3,2650.2,0.75428]
[1748394493831,1.2702,2650.3,2650.2,0.75428]
[1748394494030,0.6254,2650.3,2650.2,0.75428]
[1748394494528,3.2078,2650.8,2650.1,1.88577]
[1748394494731,0.75415,2650.7,2650.6,0.75415]
[1748394495932,0.75415,2650.7,2650.5,17.335]
[1748394495933,44.76192,2650.8,2650.7,0.75414]
[1748394496232,44.0078,2650.8,2650.7,0.75414]
[1748394496434,3.2078,2650.8,2650.7,0.75414]
[1748394496633,3.96191,2650.8,2650.7,0.75414]
[1748394500640,0.75417,2650.7,2650.6,0.75416]
[1748394500840,0.75419,2650.6,2650.5,4.48218]
[1748394501040,0.75419,2650.6,2650.5,21.81718]
[1748394501241,0.75419,2650.6,2650.5,0.75418]
[1748394501539,0.75419,2650.6,2650.5,21.81718]
[1748394503444,0.75419,2650.6,2650.5,23.14488]
[1748394504845,0.75422,2650.4,2650.3,3.728]
[1748394505139,0.75425,2650.3,2650.2,18.08927]
[1748394505342,0.75425,2650.3,2650.2,19.42497]
[1748394506442,41.55425,2650.3,2650.2,19.42497]
[1748394506746,41.55425,2650.3,2650.2,1.3357]
[1748394507343,0.75428,2650.2,2650.1,18.08929]
[1748394507546,40.8,2650.3,2650.2,0.75428]
[1748394507737,41.55425,2650.3,2650.2,0.75428]
[1748394508134,41.55425,2650.3,2650.2,2.00358]
[1748394512947,40.8,2650.3,2650.2,2.00358]
[1748394513148,40.8,2650.3,2650.2,2.67058]
[1748394513353,3.8867,2650.5,2650.4,0.75423]
[1748394513645,3.2078,2650.5,2650.4,0.75423]
[1748394514043,3.2078,2650.5,2650.4,1.39053]
[1748394514346,3.962,2650.5,2650.4,1.39053]
[1748394514944,0.00565707,2651.0,2650.4,7.5691]
[1748394515143,0.00565707,2651.0,2650.9,0.75408]
[1748394515350,0.00565707,2651.0,2650.9,18.08908]
[1748394515745,0.00565707,2651.0,2650.9,19.34088]
[1748394516052,0.75970707,2651.0,2650.9,18.5868]
[1748394516551,5.31650439,2651.0,2650.9,18.5868]
[1748394516753,5.31650439,2651.0,2650.9,1.2518]
[1748394517252,6.56520439,2651.0,2650.9,1.2518]
[1748394517652,6.56520439,2651.0,2650.9,2.00588]
[1748394518450,4.56245439,2651.0,2650.9,2.00588]
[1748394518652,3.96750707,2651.0,2650.9,1.2518]
[1748394519058,3.96750707,2651.0,2650.9,2.00588]
[1748394519250,3.96750707,2651.0,2650.9,19.33888]
[1748394520252,3.21345707,2651.0,2650.9,19.33888]
[1748394520654,3.21345707,2651.0,2650.9,20.65308]
[1748394521948,0.00565707,2651.0,2650.9,20.65308]
[1748394523757,0.75970707,2651.0,2650.9,20.65308]
[1748394526757,0.75970707,2651.0,2650.9,24.37408]
[1748394527459,0.00565707,2651.0,2650.9,24.37408]
[1748394528759,0.75970707,2651.0,2650.9,24.37408]
[1748394531566,0.75970707,2651.0,2650.9,4.9758]
[1748394531756,0.75970707,2651.0,2650.9,22.3048]
[1748394532362,0.75396977,2651.0,2650.9,22.3048]
[1748394532663,0.75396977,2651.0,2650.9,23.05888]
[1748394533162,0.75396977,2651.0,2650.9,5.72988]
[1748394533357,0.75396977,2651.0,2650.9,23.05888]
[1748394538361,0.75404,2651.1,2651.0,0.75403]
[1748394539167,0.00565707,2651.2,2651.1,0.75403]
[1748394539861,0.75965707,2651.2,2651.1,0.75403]
[1748394542263,2.10923241,2651.2,2651.1,0.75403]
[1748394542966,0.75411,2650.8,2650.7,5.28327707]
[1748394543665,0.75411,2650.8,2650.7,1.32135707]
[1748394543865,0.75411,2650.8,2650.7,5.04335707]
[1748394544067,2.10463007,2650.8,2650.7,22.37035707]
[1748394544871,0.75409,2650.9,2650.8,0.75411]
[1748394545069,2.10525868,2650.9,2650.8,0.75411]
[1748394545669,0.75409,2650.9,2650.8,0.75411]
[1748394545865,2.1052152,2650.9,2650.8,0.75411]
[1748394546174,0.75411,2650.8,2650.7,2.07548707]
[1748394546472,2.1052352,2650.8,2650.7,23.12448707]
[1748394546873,2.1052352,2650.8,2650.7,5.79748707]
[1748394547066,2.1052352,2650.8,2650.7,23.12448707]
[1748394550174,2.10507902,2650.8,2650.7,23.12448707]
[1748394550574,1.35096902,2650.8,2650.7,23.12448707]
[1748394550775,0.75411,2650.8,2650.7,23.12448707]
[1748394552178,0.7541,2650.9,2650.8,0.75408]
[1748394552374,2.1049954,2650.9,2650.8,0.75408]
[1748394554580,2.1049954,2650.9,2650.8,1.99738]
[1748394558882,2.10513843,2650.9,2650.8,1.99738]
[1748394559380,1.35103843,2650.9,2650.8,1.99738]
[1748394560679,1.41897707,2651.2,2651.1,0.75403]
[1748394560877,2.77004947,2651.2,2651.1,0.75403]
[1748394562178,1.35672947,2651.2,2651.1,4.47603]
[1748394562486,1.35672947,2651.2,2651.1,5.12093]
[1748394562690,2.11072947,2651.2,2651.1,22.44593]
[1748394563182,2.11043901,2651.2,2651.1,0.6449]
[1748394563387,2.11043901,2651.2,2651.1,0.75403]
[1748394563579,2.78023901,2651.2,2651.1,2.05263]
[1748394563779,2.78023901,2651.2,2651.1,23.09963]
[1748394563974,2.78023901,2651.2,2651.1,2.05263]
[1748394564183,2.78023901,2651.2,2651.1,1.2986]
[1748394564184,4.02113901,2651.2,2651.1,1.2986]
[1748394564389,0.75408,2650.9,2650.8,0.75409]
[1748394564587,0.75408,2650.9,2650.8,21.80009]
[1748394564885,1.35078194,2650.9,2650.8,21.80009]
[1748394565488,2.10486194,2650.9,2650.8,21.80009]
[1748394565687,2.10486194,2650.9,2650.8,23.16699]
[1748394566790,1.35078194,2650.9,2650.8,23.16699]
[1748394567386,4.57807,2651.0,2650.9,0.75408]
[1748394567589,5.9293391,2651.0,2650.9,2.12098]
[1748394571897,0.75411,2650.8,2650.7,1.40437707]
[1748394572095,0.75411,2650.8,2650.7,22.44637707]
[1748394572996,2.10579406,2650.8,2650.7,0.00565707]
[1748394573190,7.10579406,2650.8,2650.7,0.00565707]
[1748394573692,2.10579406,2650.8,2650.7,0.00565707]
[1748394575690,2.10579406,2650.8,2650.7,0.75979707]
[1748394576095,2.10537782,2650.8,2650.7,0.75979707]
[1748394576794,2.10537782,2650.8,2650.7,0.00565707]
[1748394578492,0.75422,2650.4,2650.3,3.719]
[1748394578794,3.96202,2650.4,2650.3,3.719]
[1748394578994,5.31328782,2650.4,2650.3,3.719]
[1748394579697,0.75428,2650.2,2650.1,0.75429]
[1748394579899,0.75428,2650.2,2650.1,4.47329]
[1748394580192,2.05047,2650.3,2650.2,0.75428]
[1748394580400,3.96204,2650.4,2650.3,0.75425]
[1748394580701,5.31223607,2650.4,2650.3,0.75425]
[1748394582298,0.75421,2650.5,2650.2,3.21438]
[1748394582500,3.96196,2650.7,2650.6,0.75417]
[1748394582800,3.96196,2650.7,2650.6,4.47317]
[1748394583198,3.96196,2650.7,2650.6,5.14147]
[1748394583499,3.96196,2650.7,2650.6,6.50227]
[1748394583701,3.2078,2650.7,2650.6,6.50227]
[1748394583897,0.75414,2650.8,2650.6,5.7481]
[1748394584095,0.75414,2650.8,2650.7,2.0397]
[1748394585099,0.75414,2650.8,2650.7,2.79384]
[1748394585294,0.75414,2650.8,2650.7,2.0397]
[1748394585695,0.75414,2650.8,2650.7,2.79384]
[1748394586396,0.75414,2650.8,2650.7,2.0397]
[1748394586798,0.75414,2650.8,2650.7,2.79384]
[1748394587201,0.75414,2650.8,2650.7,6.51284]
[1748394587399,0.75414,2650.8,2650.7,2.0397]
[1748394587604,0.75414,2650.8,2650.7,5.7587]
[1748394587802,0.75414,2650.8,2650.7,6.51284]
[1748394588100,0.75414,2650.8,2650.7,2.79384]
[1748394588300,0.75414,2650.8,2650.7,6.51284]
[1748394588899,3.2078,2651.0,2650.7,5.7587]
[1748394589205,0.00565707,2651.2,2651.1,0.75403]
[1748394589398,0.00565707,2651.2,2651.1,4.47303]
[1748394589598,0.00565707,2651.2,2651.1,5.70823]
[1748394589894,0.00565707,2651.2,2651.1,10.70823]
[1748394590707,0.00565707,2651.2,2651.1,5.70823]
[1748394597811,0.75965707,2651.2,2651.1,23.02423]
[1748394598807,0.00565707,2651.2,2651.1,5.70723]
[1748394599009,0.75965707,2651.2,2651.1,5.70723]
[1748394599197,0.00565707,2651.2,2651.1,5.70723]
[1748394599704,0.75965707,2651.2,2651.1,1.2352]
[1748394599903,0.75408,2650.9,2650.8,1.42739]
[1748394600103,0.75408,2650.9,2650.8,6.43199]
[1748394600504,0.75405,2651.1,2651.0,0.75402]
[1748394601711,0.75405,2651.0,2650.9,1.2896]
[1748394601911,0.75405,2651.0,2650.9,2.04368]
[1748394602315,45.33875707,2651.2,2650.9,1.2896]
[1748394602616,45.41416707,2651.2,2651.1,0.75402]
[1748394603214,4.61416707,2651.2,2651.1,0.75402]
[1748394603710,3.21345707,2651.2,2651.1,0.75402]
[1748394603907,3.21345707,2651.2,2651.1,1.37892]
[1748394605703,0.00565707,2651.2,2651.1,1.37892]
[1748394607012,3.2078,2652.0,2651.1,9.39502]
[1748394607315,0.75381,2651.9,2651.8,0.75381]
[1748394607509,0.75381,2651.9,2651.8,4.46881]
[1748394607709,0.6176,2652.0,2651.9,0.7538]
[1748394608208,0.6176,2652.0,2651.9,2.1072]
[1748394609313,1.37137,2652.0,2651.9,2.1072]
[1748394609715,0.658,2652.1,2652.0,0.75377]
[1748394610014,0.658,2652.1,2652.0,2.10717]
[1748394610316,1.41174,2652.1,2652.0,2.10717]
[1748394612317,0.658,2652.1,2652.0,2.10717]
[1748394612713,0.75938707,2652.2,2652.1,0.75374]
[1748394613121,0.75938707,2652.2,2652.1,1.40884]
[1748394613310,0.00565707,2652.2,2652.1,18.72084]
[1748394613514,3.2078,2652.7,2652.6,0.7536]
[1748394613717,3.2078,2652.7,2652.6,4.4686]
[1748394614114,3.96137,2652.7,2652.6,3.715]
[1748394614721,3.96137,2652.7,2652.6,4.9996]
[1748394614915,3.2078,2652.7,2652.6,5.7532]
[1748394615216,0.00565707,2652.9,2652.8,0.75354]
[1748394615416,0.75357,2652.7,2652.6,1.2846]
[1748394615617,0.75357,2652.7,2652.6,4.9986]